bitfinex/quotes_SOLUSD_20250222
["timestamp","ask_amount","ask_price","bid_price","bid_amount"]
[1740247950333,17.24804327,174.14,174.13,0.063]
[1740247952936,11.50554327,174.14,174.13,0.063]
[1740247953813,31.15519213,174.14,174.13,0.063]
[1740247954114,36.89769213,174.14,174.13,0.063]
[1740247956533,36.92769213,174.14,174.13,0.063]
[1740247956715,30.18519213,174.14,174.13,0.063]
[1740247957732,11.53554327,174.14,174.13,0.063]
[1740247959342,30.18519213,174.14,174.13,0.063]
[1740247959547,36.92769213,174.14,174.13,0.063]
[1740247978857,37.92769213,174.14,174.13,0.063]
[1740247982768,36.92769213,174.14,174.13,0.063]
[1740247983540,37.92769213,174.14,174.13,0.063]
[1740247983742,42.16769213,174.14,174.13,0.063]
[1740247989860,21.0,174.11,174.1,0.063]
[1740247990064,32.50554327,174.11,174.1,0.063]
[1740247990486,51.15519213,174.11,174.1,0.063]
[1740247990998,56.89859213,174.11,174.1,0.063]
[1740247991465,57.89859213,174.11,174.1,0.063]
[1740247993502,1.0,174.09,174.08,0.063]
[1740247993729,13.50554327,174.09,174.08,0.063]
[1740247994019,51.15519213,174.06,174.05,0.063]
[1740247994168,55.39519213,174.06,174.05,0.063]
[1740247994570,56.39519213,174.06,174.05,0.063]
[1740247995298,55.39519213,174.06,174.05,0.063]
[1740247995471,62.14029213,174.06,174.05,0.063]
[1740247996292,107.16246521,174.06,174.05,0.063]
[1740247996482,61.14029213,174.06,174.05,0.063]
[1740247997175,35.74554327,174.06,174.05,0.063]
[1740247997375,31.50554327,174.06,174.05,0.063]
[1740247999707,56.90029213,174.06,174.05,0.063]
[1740248000922,57.90029213,174.06,174.05,0.063]
[1740248001124,103.92246521,174.06,174.05,0.063]
[1740248004327,56.90029213,174.06,174.05,0.063]
[1740248004515,57.90029213,174.06,174.05,0.063]
[1740248004713,56.90029213,174.06,174.05,0.063]
[1740248007025,57.90029213,174.06,174.05,0.063]
[1740248007325,56.90029213,174.06,174.05,0.063]
[1740248008407,55.90029213,174.06,174.05,0.063]
[1740248011128,56.90029213,174.06,174.05,0.063]
[1740248011314,55.90029213,174.06,174.05,0.063]
[1740248011633,56.90029213,174.06,174.05,0.063]
[1740248013535,55.90029213,174.06,174.05,0.063]
[1740248013726,56.90029213,174.06,174.05,0.063]
[1740248020139,57.90029213,174.06,174.05,0.063]
[1740248021137,56.90029213,174.06,174.05,0.063]
[1740248025642,103.92246521,174.06,174.05,0.063]
[1740248025844,57.90029213,174.06,174.05,0.063]
[1740248026044,56.90029213,174.06,174.05,0.063]
[1740248026633,57.90029213,174.06,174.05,0.063]
[1740248026931,56.90029213,174.06,174.05,0.063]
[1740248027645,57.90029213,174.06,174.05,0.063]
[1740248028143,56.90029213,174.06,174.05,0.063]
[1740248028626,57.90029213,174.06,174.05,0.063]
[1740248029948,56.90029213,174.06,174.05,0.063]
[1740248031425,57.90029213,174.06,174.05,0.063]
[1740248032341,56.90029213,174.06,174.05,0.063]
[1740248037346,57.90029213,174.06,174.05,0.063]
[1740248037548,56.90029213,174.06,174.05,0.063]
[1740248038049,55.90029213,174.06,174.05,0.063]
[1740248038558,56.90029213,174.06,174.05,0.063]
[1740248042636,1.0,174.04,174.03,0.063]
[1740248042939,41.14099213,174.04,174.03,0.0001]
[1740248046161,43.97054053,174.04,174.03,0.0001]
[1740248050456,35.90099213,174.04,174.03,0.0001]
[1740248052858,36.90099213,174.04,174.03,0.0001]
[1740248060278,39.83335211,174.04,174.03,0.0001]
[1740248066779,39.86335211,174.04,174.03,0.0001]
[1740248069882,36.93099213,174.04,174.03,0.0001]
[1740248076978,39.84619562,174.04,174.03,0.0001]
[1740248079464,40.84619562,174.04,174.03,0.0001]
[1740248079664,19.64964886,174.03,174.02,0.0431]
[1740248079884,31.15519213,174.03,174.02,0.0431]
[1740248080073,36.90129213,174.03,174.02,0.0431]
[1740248081601,36.90129213,174.03,174.02,0.0001]
[1740248081775,37.90129213,174.03,174.02,0.0001]
[1740248082392,39.64964886,174.01,174.0,0.0001]
[1740248082594,51.15519213,174.01,174.0,0.0001]
[1740248082980,52.15519213,174.01,174.0,0.0001]
[1740248083474,57.90189213,174.01,174.0,0.0001]
[1740248084484,66.93022597,174.01,174.0,0.0001]
[1740248085095,12.50554327,173.99,173.98,0.063]
[1740248085293,1.0,173.98,173.97,0.063]
[1740248085475,78.17736521,173.98,173.97,0.063]
[1740248085673,207.27736521,173.98,173.97,0.063]
[1740248085891,159.17736521,173.98,173.97,0.0001]
[1740248086585,164.92506521,173.98,173.97,0.0001]
[1740248086775,117.90289213,173.98,173.97,0.0001]
[1740248088899,36.90289213,173.98,173.97,0.0001]
[1740248089297,37.90289213,173.98,173.97,0.0001]
[1740248089492,36.90289213,173.98,173.97,0.0001]
[1740248090580,39.752178,173.98,173.97,0.0001]
[1740248091974,33.004478,173.98,173.97,0.0001]
[1740248092170,30.15519213,173.98,173.97,0.0001]
[1740248092497,36.90289213,173.98,173.97,0.0001]
[1740248092986,37.90289213,173.98,173.97,0.0001]
[1740248097507,83.92506521,173.98,173.97,0.0001]
[1740248100293,36.90289213,173.98,173.97,0.0001]
[1740248100495,35.96589213,173.98,173.97,0.0001]
[1740248100679,36.96589213,173.98,173.97,0.0001]
[1740248101082,88.22806521,173.98,173.97,0.0001]
[1740248101491,42.20589213,173.98,173.97,0.0001]
[1740248101817,19.64964886,173.97,173.96,0.0431]
[1740248102007,77.17736521,173.97,173.96,0.0431]
[1740248102313,19.64964886,173.96,173.91,0.063]
[1740248102612,36.90359213,173.96,173.91,0.063]
[1740248103592,21.0,173.92,173.91,0.063]
[1740248103812,55.39519213,173.92,173.91,0.063]
[1740248104191,20.0,173.88,173.87,0.063]
[1740248104384,50.15519213,173.88,173.87,0.063]
[1740248105095,51.15519213,173.88,173.87,0.063]
[1740248105408,1.0,173.86,173.85,0.063]
[1740248105608,35.39519213,173.86,173.85,0.063]
[1740248105813,41.14689213,173.86,173.85,0.063]
[1740248107227,34.39519213,173.86,173.85,0.063]
[1740248107585,4.24,173.86,173.85,1.7205]
[1740248107790,20.0,173.87,173.85,1.7205]
[1740248108007,11.50554327,173.88,173.85,1.7205]
[1740248108198,30.15519213,173.89,173.85,1.7205]
[1740248108596,11.50554327,173.92,173.86,11.50554327]
[1740248108843,81.0,173.87,173.85,13.22604327]
[1740248109019,129.1,173.86,173.85,13.22604327]
[1740248109309,129.1,173.86,173.85,18.97804327]
[1740248109613,81.0,173.86,173.85,18.97804327]
[1740248112096,77.6668,173.86,173.85,18.41634327]
[1740248112625,45.3043,173.89,173.85,32.79654327]
[1740248112792,45.3043,173.89,173.88,77.52771635]
[1740248113599,15.7585,173.89,173.88,83.27871635]
[1740248113799,11.56854327,173.98,173.89,1.0969]
[1740248113800,15.7585,173.97,173.89,1.0969]
[1740248114001,15.7585,173.96,173.95,11.50554327]
[1740248114331,0.063,173.98,173.95,11.50554327]
[1740248114623,0.063,173.98,173.94,11.50554327]
[1740248115333,81.0,173.95,173.89,1.0969]
[1740248115502,81.0,173.97,173.93,26.284]
[1740248116818,81.0,173.97,173.96,12.60244327]
[1740248117003,0.063,173.98,173.96,12.60244327]
[1740248117202,0.063,173.98,173.97,11.50554327]
[1740248118856,0.063,173.98,173.97,17.25364327]
[1740248122728,0.063,173.98,173.97,11.50554327]
[1740248123814,0.063,173.98,173.96,11.53554327]
[1740248124019,0.063,173.98,173.96,0.03]
[1740248124315,81.0,173.97,173.96,0.03]
[1740248125221,11.50554327,173.97,173.96,0.03]
[1740248126347,17.31634327,173.98,173.96,0.03]
[1740248126646,5.8108,173.98,173.96,0.03]
[1740248126938,0.063,173.98,173.96,0.03]
[1740248130933,11.56854327,173.98,173.96,0.03]
[1740248131133,31.50554327,173.97,173.96,0.03]
[1740248132239,37.25364327,173.97,173.96,0.03]
[1740248136533,37.31664327,173.97,173.96,0.03]
[1740248146828,55.96629213,173.97,173.96,0.03]
[1740248147023,109.20616521,173.97,173.96,0.03]
[1740248147229,111.84716521,173.97,173.96,0.0001]
[1740248149436,20.0,173.92,173.89,0.03]
[1740248149641,11.50554327,173.9,173.89,0.03]
[1740248151975,31.50554327,173.92,173.89,0.03]
[1740248152174,11.50554327,173.93,173.89,0.03]
[1740248152380,5.7491,173.94,173.9,11.50554327]
[1740248152558,81.0,173.93,173.91,11.50554327]
[1740248155149,81.0,173.93,173.89,5.7806]
[1740248155371,81.0,173.93,173.9,11.50554327]
[1740248157253,81.0,173.92,173.9,11.50554327]
[1740248158674,81.0,173.92,173.89,0.03]
[1740248159172,81.0,173.92,173.89,11.53554327]
[1740248159375,81.0,173.92,173.9,0.03]
[1740248160473,86.7497,173.92,173.9,0.03]
[1740248160676,11.50554327,173.91,173.9,0.03]
[1740248161577,17.25564327,173.91,173.9,0.03]
[1740248164967,81.0,173.95,173.9,11.53554327]
[1740248165271,92.50554327,173.95,173.9,11.53554327]
[1740248165581,92.50554327,173.95,173.9,17.28584327]
[1740248165758,81.0,173.95,173.9,17.28584327]
[1740248165958,81.0,173.95,173.91,11.50554327]
[1740248167474,81.0,173.95,173.91,17.25534327]
[1740248168055,11.50554327,173.92,173.9,0.03]
[1740248168275,81.0,173.91,173.9,0.03]
[1740248170285,81.0,173.91,173.9,11.53554327]
[1740248170668,81.0,173.91,173.9,17.90294116]
[1740248171687,81.0,173.91,173.9,23.65334116]
[1740248171868,81.0,173.96,173.9,38.02934116]
[1740248172070,81.0,173.95,173.9,20.1564]
[1740248172776,81.0,173.95,173.9,14.406]
[1740248173186,81.0,173.95,173.94,17.87294116]
[1740248174971,81.0,173.95,173.94,23.62204116]
[1740248185991,0.063,173.97,173.94,23.62204116]
[1740248186197,0.063,173.97,173.96,17.87294116]
[1740248187000,0.063,173.97,173.96,35.74588232]
[1740248187302,0.063,173.98,173.96,35.74588232]
[1740248187597,0.063,173.98,173.97,35.74588232]
[1740248188097,0.063,173.98,173.97,41.49398232]
[1740248188308,0.063,173.98,173.97,60.14363118]
[1740248190286,0.063,173.98,173.97,17.87294116]
[1740248191182,0.063,173.98,173.97,23.62104116]
[1740248191806,0.063,173.98,173.97,17.87294116]
[1740248193503,0.063,173.98,173.97,23.62104116]
[1740248194610,0.063,173.98,173.97,11.43214508]
[1740248205134,0.063,173.98,173.94,11.46214508]
[1740248205327,81.0,173.97,173.94,11.46214508]
[1740248207234,81.0,173.97,173.95,11.43214508]
[1740248208333,81.0,173.97,173.96,11.43214508]
[1740248209169,81.0,173.97,173.96,17.18054508]
[1740248209352,81.0,173.97,173.96,11.43214508]
[1740248210139,81.0,173.97,173.96,17.18054508]
[1740248216674,0.063,173.98,173.96,17.18054508]
[1740248216872,0.063,173.98,173.97,11.43214508]
[1740248217945,0.063,173.98,173.97,17.18024508]
[1740248218784,0.063,173.98,173.97,62.9088254]
[1740248218962,0.063,173.98,173.97,81.55847426]
[1740248219276,81.0,174.0,173.97,81.55847426]
[1740248219464,81.0,174.03,173.99,11.43214508]
[1740248219645,81.0,174.03,174.02,11.43214508]
[1740248219843,81.0,174.03,174.02,17.17854508]
[1740248225581,0.03,174.04,174.02,17.17854508]
[1740248225776,0.03,174.04,174.03,11.43214508]
[1740248227657,0.03,174.04,174.03,17.17824508]
[1740248229479,0.03,174.04,174.03,11.43214508]
[1740248231485,81.0,174.03,173.99,11.43214508]
[1740248231691,81.0,174.02,173.98,11.43214508]
[1740248231864,92.43214508,174.02,173.96,17.18044508]
[1740248232487,11.43214508,174.01,173.96,11.43214508]
[1740248232798,6.5017,174.04,173.94,17.21114508]
[1740248232799,11.43214508,173.99,173.94,17.21114508]
[1740248233110,81.0,173.98,173.94,17.21114508]
[1740248234098,81.0,173.98,173.95,11.43214508]
[1740248235474,81.0,173.98,173.94,0.03]
[1740248235674,92.43214508,173.98,173.94,0.03]
[1740248237481,81.0,173.97,173.94,0.03]
[1740248238296,81.0,173.96,173.94,0.03]
[1740248238598,87.4717,173.96,173.94,0.03]
[1740248238769,104.65234508,173.96,173.94,0.03]
[1740248238975,11.43214508,173.95,173.94,0.03]
[1740248239497,17.90384508,173.96,173.94,0.03]
[1740248239677,23.65224508,173.96,173.94,0.03]
[1740248240091,11.43214508,173.95,173.94,0.03]
[1740248240272,92.43214508,173.95,173.94,0.03]
[1740248240472,98.18084508,173.95,173.94,0.03]
[1740248241297,17.18084508,173.95,173.94,0.03]
[1740248242079,17.18084508,173.95,173.9,0.03]
[1740248242080,18.77544508,173.95,173.9,0.03]
[1740248242313,11.43214508,173.93,173.9,0.03]
[1740248242477,11.43214508,173.92,173.9,0.03]
[1740248243106,11.43214508,173.92,173.87,10.22714508]
[1740248243277,11.43214508,173.91,173.85,17.24714508]
[1740248243474,81.0,173.9,173.85,11.49514508]
[1740248243810,81.0,173.9,173.86,11.43214508]
[1740248244639,81.0,173.9,173.86,17.18384508]
[1740248245134,81.0,173.9,173.86,11.43214508]
[1740248245507,81.0,173.9,173.86,17.18364508]
[1740248245936,81.0,173.9,173.87,11.43214508]
[1740248246412,81.0,173.9,173.86,17.18364508]
[1740248247897,81.0,173.9,173.85,17.24714508]
[1740248248125,1.5384,173.89,173.85,17.24714508]
[1740248249415,81.0,173.88,173.85,17.24714508]
[1740248250238,1.5384,173.89,173.85,0.063]
[1740248250239,81.0,173.87,173.85,0.063]
[1740248250447,81.0,173.86,173.85,0.063]
[1740248251855,81.0,173.86,173.85,11.49514508]
[1740248252523,81.0,173.86,173.85,0.063]
[1740248255218,11.43214508,173.86,173.85,0.063]
[1740248255918,17.18384508,173.86,173.85,0.063]
[1740248257120,11.43214508,173.86,173.85,0.063]
[1740248259424,43.46399394,173.86,173.82,0.063]
[1740248259632,11.43214508,173.83,173.82,0.063]
[1740248261422,17.18484508,173.83,173.82,0.063]
[1740248263847,37.45029394,173.83,173.81,0.063]
[1740248264019,15.65214508,173.82,173.81,0.063]
[1740248265145,34.30179394,173.82,173.81,0.063]
[1740248265640,20.0,173.82,173.81,0.063]
[1740248265843,31.43214508,173.82,173.81,0.063]
[1740248271652,55.83479394,173.82,173.81,0.063]
[1740248273651,1.6158,173.83,173.81,0.063]
[1740248273855,13.04794508,173.83,173.81,0.063]
[1740248274433,1.6158,173.83,173.81,0.063]
[1740248275651,13.04794508,173.83,173.81,0.063]
[1740248276035,11.43214508,173.82,173.81,0.063]
[1740248278132,20.0,173.82,173.81,0.063]
[1740248279739,31.43214508,173.82,173.81,0.063]
[1740248280330,25.79386515,173.87,173.81,11.49514508]
[1740248280331,0.063,173.87,173.81,11.49514508]
[1740248280534,0.063,173.87,173.82,11.43214508]
[1740248281293,0.063,173.87,173.83,5.7527]
[1740248284881,81.0,173.86,173.83,5.7527]
[1740248285078,81.0,173.86,173.85,11.43214508]
[1740248286963,81.0,173.86,173.85,17.18414508]
[1740248289971,81.0,173.93,173.85,22.65704508]
[1740248290175,81.0,173.93,173.92,11.43214508]
[1740248291764,81.0,173.93,173.9,11.43214508]
[1740248292175,81.0,173.93,173.89,11.43214508]
[1740248293453,81.0,173.93,173.9,11.43214508]
[1740248293770,81.0,173.93,173.91,11.43214508]
[1740248294082,81.0,173.92,173.91,11.43214508]
[1740248294257,81.0,173.92,173.9,11.43214508]
[1740248294773,81.0,173.92,173.88,11.43214508]
[1740248294979,81.0,173.91,173.88,11.43214508]
[1740248295179,81.0,173.9,173.87,11.43214508]
[1740248295482,81.0,173.9,173.86,11.43214508]
[1740248295668,92.43214508,173.9,173.84,11.43214508]
[1740248295979,92.43214508,173.89,173.83,21.40484508]
[1740248296179,92.43214508,173.89,173.84,11.43214508]
[1740248296772,81.0,173.89,173.85,11.43214508]
[1740248299967,5.7504,173.9,173.85,11.43214508]
[1740248299968,81.0,173.88,173.85,11.43214508]
[1740248300587,81.0,173.87,173.83,15.65214508]
[1740248300788,81.0,173.86,173.82,11.46214508]
[1740248301081,81.0,173.85,173.82,11.46214508]
[1740248304381,81.0,173.85,173.83,11.43214508]
[1740248305588,81.0,173.84,173.82,0.03]
[1740248305990,92.43214508,173.84,173.82,0.03]
[1740248306359,86.7524,173.84,173.82,0.03]
[1740248307486,81.0,173.84,173.82,0.03]
[1740248307686,92.43214508,173.83,173.82,0.03]
[1740248307987,81.0,173.83,173.82,0.03]
[1740248311384,81.0,173.83,173.82,11.46214508]
[1740248311774,1.5474,173.86,173.82,11.46214508]
[1740248312383,1.5474,173.86,173.82,17.21514508]
[1740248312597,1.5474,173.86,173.83,11.43214508]
[1740248312779,11.43214508,173.89,173.83,11.43214508]
[1740248313099,81.0,173.88,173.84,11.43214508]
[1740248314078,81.0,173.88,173.84,17.18454508]
[1740248314479,81.0,173.88,173.85,11.43214508]
[1740248314881,81.0,173.87,173.85,11.43214508]
[1740248315086,81.0,173.87,173.86,11.43214508]
[1740248315282,1.6349,173.9,173.86,11.43214508]
[1740248315471,1.6349,173.9,173.87,11.43214508]
[1740248317901,1.6979,173.9,173.87,11.43214508]
[1740248318613,0.063,173.9,173.88,11.43214508]
[1740248318908,0.063,173.9,173.89,11.43214508]
[1740248320111,0.063,173.9,173.89,17.18284508]
[1740248321409,0.063,173.9,173.89,11.43214508]
[1740248326400,0.063,173.9,173.89,17.18284508]
[1740248328916,0.063,173.9,173.89,11.43214508]
[1740248330108,0.063,173.9,173.89,17.18284508]
[1740248333190,0.063,173.9,173.89,11.43214508]
[1740248334019,0.063,173.9,173.89,17.18284508]
[1740248335829,0.063,173.9,173.89,11.43214508]
[1740248336329,0.063,173.9,173.87,11.46214508]
[1740248336641,0.063,173.9,173.88,11.43214508]
[1740248337006,0.063,173.9,173.89,11.43214508]
[1740248352516,0.063,173.9,173.88,11.43214508]
[1740248352722,81.0,173.89,173.87,0.03]
[1740248353030,81.0,173.88,173.87,0.03]
[1740248355160,81.0,173.88,173.87,11.46214508]
[1740248356425,81.0,173.88,173.87,17.21354508]
[1740248367037,0.063,173.9,173.89,20.0]
[1740248367237,0.063,173.9,173.89,31.43214508]
[1740248368859,0.063,173.9,173.89,37.18284508]
[1740248369155,0.063,173.98,173.9,18.64964886]
[1740248369156,81.0,173.97,173.9,18.64964886]
[1740248369340,81.0,173.96,173.9,18.64964886]
[1740248370264,81.0,173.96,173.91,20.1253]
[1740248370438,81.0,173.96,173.95,11.43214508]
[1740248370638,0.063,173.98,173.95,11.43214508]
[1740248372766,0.063,173.98,173.95,17.18074508]
[1740248373460,0.063,173.98,173.97,11.43214508]
[1740248373840,0.063,173.98,173.96,11.43214508]
[1740248374041,81.0,173.97,173.95,11.43214508]
[1740248376255,81.0,173.97,173.94,11.43214508]
[1740248376461,81.0,173.97,173.93,11.43214508]
[1740248377742,81.0,173.97,173.94,11.43214508]
[1740248378341,81.0,173.97,173.95,11.43214508]
[1740248379869,81.0,173.97,173.94,11.43214508]
[1740248380053,81.0,173.96,173.93,11.43214508]
[1740248382668,81.0,173.96,173.94,11.43214508]
[1740248383661,81.0,173.96,173.95,11.43214508]
[1740248384245,81.0,173.96,173.93,11.43214508]
[1740248384466,81.0,173.96,173.92,11.43214508]
[1740248385456,81.0,173.96,173.91,11.43214508]
[1740248385664,81.0,173.95,173.91,11.43214508]
[1740248386871,81.0,173.95,173.92,11.43214508]
[1740248388953,81.0,173.94,173.92,11.43214508]
[1740248394895,81.0,173.93,173.92,11.43214508]
[1740248395962,81.0,173.93,173.91,11.43214508]
[1740248399388,81.0,173.93,173.92,11.43214508]
[1740248400886,81.0,173.93,173.92,17.18184508]
[1740248404100,51.2856,173.93,173.92,35.83149394]
[1740248404395,51.2856,173.93,173.92,36.83149394]
[1740248404590,0.063,173.95,173.94,20.0]
[1740248404799,0.063,173.95,173.94,31.43214508]
[1740248405372,0.063,173.95,173.94,37.18124508]
[1740248409001,0.063,173.95,173.94,55.83089394]
[1740248409176,51.2856,173.97,173.96,75.81037426]
[1740248409488,0.063,173.98,173.96,62.9091254]
[1740248409800,0.063,173.98,173.97,57.1607254]
[1740248410495,0.063,173.98,173.97,75.81037426]
[1740248411497,0.063,173.98,173.97,81.55847426]
[1740248417591,0.063,173.98,173.97,84.47410986]
[1740248420406,0.063,173.98,173.97,85.33603418]
[1740248422106,0.0001,173.98,173.97,86.33603418]
[1740248422408,0.03,174.04,174.01,18.64964886]
[1740248422610,0.03,174.04,174.03,11.43214508]
[1740248423091,0.03,174.04,174.03,12.43214508]
[1740248423284,0.03,174.04,174.03,17.17824508]
[1740248425008,0.03,174.04,174.03,18.17824508]
[1740248428110,51.3486,174.05,174.04,19.64964886]
[1740248428287,51.3486,174.05,174.04,31.08179394]
[1740248428688,51.3486,174.05,174.04,82.55617426]
[1740248428905,0.03,174.08,174.05,20.64964886]
[1740248429097,0.03,174.08,174.06,64.24215856]
[1740248429701,0.0001,174.07,174.06,64.24215856]
[1740248430712,0.0001,174.07,174.06,69.98725856]
[1740248436118,0.0001,174.07,174.06,88.63690742]
[1740248436416,51.2856,174.11,174.1,20.0]
[1740248436596,51.2856,174.11,174.1,31.43214508]
[1740248437008,0.063,174.13,174.1,50.08179394]
[1740248437209,0.063,174.13,174.12,11.43214508]
[1740248446213,0.063,174.13,174.12,17.17524508]
[1740248447016,0.063,174.13,174.12,11.43214508]
[1740248449729,0.063,174.13,174.11,11.43214508]
[1740248450550,0.063,174.13,174.12,11.43214508]
[1740248451632,0.063,174.13,174.11,11.43214508]
[1740248452331,1.5627,174.12,174.08,0.063]
[1740248452527,82.5627,174.12,174.08,0.063]
[1740248457419,81.0,174.11,174.08,0.063]
[1740248461342,81.0,174.11,174.08,17.23954508]
[1740248461729,81.0,174.11,174.09,11.43214508]
[1740248461929,81.0,174.11,174.1,11.43214508]
[1740248462443,81.0,174.11,174.09,11.43214508]
[1740248463335,81.0,174.1,174.09,17.17624508]
[1740248465432,81.063,174.13,174.09,35.82589394]
[1740248465638,81.063,174.13,174.12,11.43214508]
[1740248467850,81.063,174.13,174.12,17.17524508]
[1740248471767,81.063,174.13,174.12,5.7431]
[1740248471971,81.063,174.13,174.12,17.17524508]
[1740248472265,81.063,174.13,174.12,5.7431]
[1740248473082,81.063,174.13,174.12,11.43214508]
[1740248474733,81.063,174.13,174.12,17.17524508]
[1740248475336,0.063,174.13,174.12,17.17524508]
[1740248477070,0.0001,174.14,174.13,18.64964886]
[1740248477242,0.0001,174.14,174.13,31.08179394]
[1740248477639,0.0001,174.15,174.14,2.0]
[1740248477845,0.0001,174.16,174.15,1.0]
[1740248478045,0.0001,174.16,174.15,12.43214508]
[1740248478454,0.0001,174.16,174.15,11.43214508]
[1740248479740,0.0001,174.16,174.15,30.08179394]
[1740248479939,0.0001,174.16,174.15,35.82389394]
[1740248480363,0.0001,174.16,174.14,17.17454508]
[1740248483269,0.0001,174.16,174.15,11.43214508]
[1740248484274,0.0001,174.16,174.15,17.17424508]
[1740248490563,0.0001,174.16,174.15,35.82389394]
[1740248490764,0.0001,174.16,174.15,36.82389394]
[1740248490995,0.0001,174.16,174.15,82.55247426]
[1740248492487,0.0001,174.16,174.15,36.82389394]
[1740248492876,0.0001,174.16,174.15,37.82389394]
[1740248496864,0.0001,174.16,174.15,37.88689394]
[1740248498181,0.0001,174.16,174.15,36.88689394]
[1740248498393,0.0001,174.16,174.15,37.88689394]
[1740248501862,0.0001,174.16,174.15,36.88689394]
[1740248502074,0.0001,174.16,174.15,37.88689394]
[1740248505275,0.0001,174.16,174.15,83.61547426]
[1740248505686,0.0001,174.16,174.15,35.88689394]
[1740248506287,0.0001,174.16,174.15,5.8051]
[1740248506486,0.0001,174.16,174.15,17.23724508]
[1740248508596,0.0001,174.16,174.15,5.8051]
[1740248511171,0.0001,174.16,174.15,0.063]
[1740248512273,11.43224508,174.16,174.15,0.063]
[1740248518496,12.95934508,174.16,174.15,0.063]
[1740248518889,19.33224508,174.16,174.12,0.063]
[1740248519095,11.43214508,174.13,174.12,0.063]
[1740248520488,11.43214508,174.15,174.12,0.063]
[1740248521499,11.43214508,174.14,174.12,0.063]
[1740248521983,11.43214508,174.13,174.12,0.063]
[1740248527414,6.6171,174.12,174.08,0.063]
[1740248527711,11.43214508,174.09,174.08,0.063]
[1740248528214,11.43214508,174.11,174.08,0.063]
[1740248528803,6.6171,174.12,174.08,0.063]
[1740248529113,12.96044508,174.13,174.1,11.43214508]
[1740248529114,1.5283,174.13,174.1,11.43214508]
[1740248529416,1.5283,174.13,174.11,11.43214508]
[1740248530197,1.5283,174.13,174.12,5.7431]
[1740248531318,12.96044508,174.13,174.08,11.49514508]
[1740248531523,81.0,174.12,174.08,0.063]
[1740248532415,81.0,174.12,174.08,5.8074]
[1740248533224,81.0,174.11,174.08,5.8074]
[1740248536824,81.0,174.11,174.08,17.23954508]
[1740248537203,81.0,174.11,174.09,11.43214508]
[1740248537617,81.0,174.1,174.09,11.43214508]
[1740248538505,81.0,174.1,174.09,17.17624508]
[1740248543826,20.1307,174.14,174.09,35.82589394]
[1740248544031,20.1307,174.14,174.12,11.43214508]
[1740248544225,20.1307,174.14,174.13,11.43214508]
[1740248544943,20.1307,174.14,174.12,11.43214508]
[1740248545743,20.1307,174.14,174.12,17.17504508]
[1740248549922,20.1307,174.14,174.13,11.43214508]
[1740248551445,20.1307,174.14,174.13,17.17494508]
[1740248551949,20.1307,174.14,174.13,5.7428]
[1740248552131,20.1307,174.14,174.12,11.43214508]
[1740248552335,20.1307,174.14,174.11,17.17534508]
[1740248554748,20.1307,174.14,174.11,5.7432]
[1740248555549,20.1307,174.13,174.11,5.7432]
[1740248555750,0.03,174.15,174.09,11.43214508]
[1740248555751,20.1307,174.12,174.09,11.43214508]
[1740248555937,20.1307,174.12,174.09,17.17614508]
[1740248556137,20.1307,174.12,174.1,0.063]
[1740248557049,20.1307,174.12,174.11,11.43214508]
[1740248557831,20.1307,174.12,174.11,17.17554508]
[1740248559647,0.03,174.15,174.14,20.0]
[1740248559949,0.03,174.15,174.14,31.43214508]
[1740248560143,0.03,174.15,174.14,35.63214508]
[1740248560945,0.03,174.15,174.14,41.37464508]
[1740248562526,0.03,174.15,174.14,29.9425]